[Event "CCT Julius Baer-D2-Place 2024"]
[Site "Online"]
[Date "2024.09.26"]
[Round "1"]
[White "Micki-taryan"]
[Black "Robson, Ray"]
[Result "1/2-1/2"]
[ECO "E16"]
[WhiteElo "2655"]
[BlackElo "2700"]
[Annotator "ChessBase"]
[PlyCount "267"]
[EventDate "2024.09.25"]
[EventType "swiss"]
[EventCountry "NET"]
[SourceTitle "playchess.com"]
[Source "ChessBase"]
[SourceQuality "1"]
[TimeControl "600+2"]

1. d4 {[%emt 0:00:03]} Nf6 {[%emt 0:00:04]} 2. c4 {[%emt 0:00:02]} e6 {[%emt 0:00:01]} 3. Nf3 {[%emt 0:00:00]} Bb4+ {[%emt 0:00:03]} 4. Bd2 {[%emt 0:00:02]} c5 {[%emt 0:00:02]} 5. Bxb4 {[%emt 0:00:03]} cxb4 {[%emt 0:00:01]} 6. g3 {[%emt 0:00:00]} b6 {[%emt 0:00:02]} 7. Bg2 {[%emt 0:00:01]} Bb7 {[%emt 0:00:01]} 8. O-O {[%emt 0:00:00]} a5 {[%emt 0:00:05]} 9. Qd3 {[%emt 0:00:02]} O-O {[%emt 0:00:22]} 10. Nbd2 {[%emt 0:00:02]} d5 {[%emt 0:00:08]} 11. Rac1 {[%emt 0:00:18]} Nc6 {[%emt 0:00:36]} 12. Rfd1 {[%emt 0:00:14]} Ba6 {[%emt 0:00:45]} 13. e4 {[%emt 0:01:01]} dxe4 {[%emt 0:01:11]} 14. Nxe4 {[%emt 0:00:02]} Rc8 {[%emt 0:00:06]} 15. b3 {[%emt 0:00:20]} h6 {[%emt 0:00:33]} 16. Qe3 {[%emt 0:00:21]} Nxe4 {[%emt 0:00:25]} 17. Qxe4 {[%emt 0:00:02]} Qd6 {[%emt 0:00:57]} 18. Ne5 {[%emt 0:00:37]} Bb7 {[%emt 0:01:02]} 19. Qf4 {[%emt 0:00:08]} Qe7 {[%emt 0:00:15]} 20. Nxc6 {[%emt 0:00:23]} Bxc6 {[%emt 0:00:01]} 21. d5 {[%emt 0:00:03]} Bd7 {[%emt 0:01:34]} 22. d6 {[%emt 0:00:50]} Qg5 {[%emt 0:00:04]} 23. Qf3 {[%emt 0:00:48]} Bc6 {[%emt 0:00:23]} 24. Qxc6 {[%emt 0:00:22]} Rxc6 {[%emt 0:00:02]} 25. Bxc6 {[%emt 0:00:00]} Qc5 {[%emt 0:00:19]} 26. Bb5 {[%emt 0:00:12]} Rd8 {[%emt 0:00:03]} 27. d7 {[%emt 0:00:01]} Kf8 {[%emt 0:00:08]} 28. Rc2 {[%emt 0:00:01]} g5 {[%emt 0:00:25]} 29. Rcd2 {[%emt 0:00:01]} Ke7 {[%emt 0:00:02]} 30. Rd4 {[%emt 0:00:00]} Qe5 {[%emt 0:00:08]} 31. Kg2 {[%emt 0:00:04]} Qe2 {[%emt 0:00:16]} 32. R1d2 {[%emt 0:00:11]} Qe1 {[%emt 0:00:13]} 33. h3 {[%emt 0:00:13]} h5 {[%emt 0:00:15]} 34. Bc6 {[%emt 0:00:01]} h4 {[%emt 0:00:08]} 35. g4 {[%emt 0:00:25]} Kf6 {[%emt 0:00:13]} 36. Bf3 {[%emt 0:00:25]} Ke7 {[%emt 0:00:05]} 37. Be2 {[%emt 0:00:08]} Qa1 {[%emt 0:00:10]} 38. Bd1 {[%emt 0:00:18]} Qc1 {[%emt 0:00:04]} 39. Bf3 {[%emt 0:00:14]} Qa1 {[%emt 0:00:02]} 40. R4d3 {[%emt 0:00:08]} Qe1 {[%emt 0:00:02]} 41. Bc6 {[%emt 0:00:05]} Kf6 {[%emt 0:00:05]} 42. Rd1 {[%emt 0:00:31]} Qe2 {[%emt 0:00:01]} 43. R3d2 {[%emt 0:00:00]} Qe5 {[%emt 0:00:02]} 44. Bf3 {[%emt 0:00:14]} Ke7 {[%emt 0:00:01]} 45. Bc6 {[%emt 0:00:01]} Kf6 {[%emt 0:00:01]} 46. Rd3 {[%emt 0:00:10]} Qe2 {[%emt 0:00:03]} 47. R1d2 {[%emt 0:00:01]} Qe1 {[%emt 0:00:01]} 48. Rd6 {[%emt 0:00:08]} Ke7 {[%emt 0:00:01]} 49. Bf3 {[%emt 0:00:06]} Qe5 {[%emt 0:00:03]} 50. Rxb6 {[%emt 0:00:12]} Rxd7 {[%emt 0:00:02]} 51. Rxd7+ {[%emt 0:00:00]} Kxd7 {[%emt 0:00:00]} 52. Rb5 {[%emt 0:00:00]} Qf4 {[%emt 0:00:06]} 53. c5 {[%emt 0:00:15]} e5 {[%emt 0:00:02]} 54. c6+ {[%emt 0:00:19]} Kc8 {[%emt 0:00:01]} 55. Be2 {[%emt 0:00:34]} e4 {[%emt 0:00:02]} 56. Rf5 {[%emt 0:00:01]} Qd2 {[%emt 0:00:04]} 57. Bc4 {[%emt 0:00:10]} Kc7 {[%emt 0:00:03]} 58. Bd5 {[%emt 0:00:08]} e3 {[%emt 0:00:01]} 59. Rxf7+ {[%emt 0:00:16]} Kd6 {[%emt 0:00:01]} 60. Be4 {[%emt 0:00:10]} Ke6 {[%emt 0:00:02]} 61. Rf3 {[%emt 0:00:09]} e2 {[%emt 0:00:02]} 62. c7 {[%emt 0:00:03]} Qc1 {[%emt 0:00:03]} 63. Bf5+ {[%emt 0:00:07]} Kd6 {[%emt 0:00:03]} 64. Re3 {[%emt 0:00:15]} Qxc7 {[%emt 0:00:02]} 65. Rxe2 {[%emt 0:00:00]} Qc6+ {[%emt 0:00:01]} 66. Be4 {[%emt 0:00:04]} Qc3 {[%emt 0:00:02]} 67. Bf3 {[%emt 0:00:01]} Qa1 {[%emt 0:00:02]} 68. Rd2+ {[%emt 0:00:01]} Kc7 {[%emt 0:00:03]} 69. Rc2+ {[%emt 0:00:02]} Kd6 {[%emt 0:00:02]} 70. Rd2+ {[%emt 0:00:00]} Kc7 {[%emt 0:00:01]} 71. Be2 {[%emt 0:00:01]} Kc8 {[%emt 0:00:03]} 72. Bb5 {[%emt 0:00:07]} Kc7 {[%emt 0:00:01]} 73. Rc2+ {[%emt 0:00:05]} Kb6 {[%emt 0:00:02]} 74. Bc6 {[%emt 0:00:01]} Qe5 {[%emt 0:00:01]} 75. Bf3 {[%emt 0:00:02]} Qa1 {[%emt 0:00:02]} 76. Re2 {[%emt 0:00:00]} Kc7 {[%emt 0:00:01]} 77. Rd2 {[%emt 0:00:01]} Kb6 {[%emt 0:00:02]} 78. Bd5 {[%emt 0:00:02]} Qe5 {[%emt 0:00:02]} 79. Ba8 {[%emt 0:00:04]} Qa1 {[%emt 0:00:04]} 80. Rc2 {[%emt 0:00:01]} Qe5 {[%emt 0:00:03]} 81. Bc6 {[%emt 0:00:01]} Qa1 {[%emt 0:00:02]} 82. Ba4 {[%emt 0:00:01]} Kb7 {[%emt 0:00:01]} 83. Rc5 {[%emt 0:00:01]} Qxa2 {[%emt 0:00:03]} 84. Rxa5 {[%emt 0:00:02]} Qd2 {[%emt 0:00:01]} 85. Rc5 {[%emt 0:00:04]} Kb6 {[%emt 0:00:02]} 86. Rc6+ {[%emt 0:00:01]} Ka5 {[%emt 0:00:02]} 87. Rc5+ {[%emt 0:00:02]} Kb6 {[%emt 0:00:00]} 88. Rf5 {[%emt 0:00:00]} Qd4 {[%emt 0:00:03]} 89. Rb5+ {[%emt 0:00:05]} Kc7 {[%emt 0:00:02]} 90. Rf5 {[%emt 0:00:02]} Qe4+ {[%emt 0:00:01]} 91. Kg1 {[%emt 0:00:00]} Qe1+ {[%emt 0:00:02]} 92. Kh2 {[%emt 0:00:01]} Qe4 {[%emt 0:00:03]} 93. Bb5 {[%emt 0:00:03]} Qd4 {[%emt 0:00:04]} 94. Bc4 {[%emt 0:00:01]} Qd2 {[%emt 0:00:01]} 95. Kg2 {[%emt 0:00:01]} Kb6 {[%emt 0:00:01]} 96. Rd5 {[%emt 0:00:02]} Qf4 {[%emt 0:00:02]} 97. Bd3 {[%emt 0:00:00]} Kc6 {[%emt 0:00:02]} 98. Rf5 {[%emt 0:00:01]} Qd2 {[%emt 0:00:03]} 99. Bc4 {[%emt 0:00:03]} Kc7 {[%emt 0:00:03]} 100. Rd5 {[%emt 0:00:02]} Qf4 {[%emt 0:00:01]} 101. Bd3 {[%emt 0:00:01]} Kc6 {[%emt 0:00:01]} 102. Rf5 {[%emt 0:00:04]} Qd2 {[%emt 0:00:02]} 103. Be4+ {[%emt 0:00:00]} Kc7 {[%emt 0:00:01]} 104. Rc5+ {[%emt 0:00:02]} Kb6 {[%emt 0:00:02]} 105. Rf5 {[%emt 0:00:00]} Kc7 {[%emt 0:00:01]} 106. Bd5 {[%emt 0:00:01]} Kb6 {[%emt 0:00:03]} 107. Bc4 {[%emt 0:00:01]} Kc7 {[%emt 0:00:01]} 108. Rf3 {[%emt 0:00:01]} Kb6 {[%emt 0:00:03]} 109. Rd3 {[%emt 0:00:00]} Qf4 {[%emt 0:00:01]} 110. Re3 {[%emt 0:00:00]} Kc7 {[%emt 0:00:02]} 111. Be2 {[%emt 0:00:01]} Kb6 {[%emt 0:00:02]} 112. Bf3 {[%emt 0:00:00]} Kc7 {[%emt 0:00:01]} 113. Re4 {[%emt 0:00:01]} Qd2 {[%emt 0:00:01]} 114. Re5 {[%emt 0:00:01]} Kb6 {[%emt 0:00:02]} 115. Re6+ {[%emt 0:00:01]} Kc7 {[%emt 0:00:02]} 116. Rc6+ {[%emt 0:00:01]} Kd7 {[%emt 0:00:01]} 117. Rc4 {[%emt 0:00:00]} Kd6 {[%emt 0:00:02]} 118. Be4 {[%emt 0:00:04]} Ke7 {[%emt 0:00:04]} 119. Bf3 {[%emt 0:00:02]} Kf6 {[%emt 0:00:02]} 120. Re4 {[%emt 0:00:01]} Qc3 {[%emt 0:00:05]} 121. Re3 {[%emt 0:00:01]} Qd2 {[%emt 0:00:02]} 122. Be2 {[%emt 0:00:01]} Qd4 {[%emt 0:00:02]} 123. Bc4 {[%emt 0:00:01]} Qd2 {[%emt 0:00:03]} 124. Kf3 {[%emt 0:00:08]} Qd4 {[%emt 0:00:02]} 125. Ke2 {[%emt 0:00:01]} Kg7 {[%emt 0:00:02]} 126. Rd3 {[%emt 0:00:02]} Qe4+ {[%emt 0:00:02]} 127. Re3 {[%emt 0:00:01]} Qd4 {[%emt 0:00:01]} 128. Kf3 {[%emt 0:00:01]} Kf6 {[%emt 0:00:01]} 129. Re6+ {[%emt 0:00:01]} Kg7 {[%emt 0:00:01]} 130. Re4 {[%emt 0:00:01]} Qc3+ {[%emt 0:00:02]} 131. Kg2 {[%emt 0:00:03]} Qd2 {[%emt 0:00:02]} 132. Re3 {[%emt 0:00:02]} Kf6 {[%emt 0:00:02]} 133. Rd3 {[%emt 0:00:00]} Qe1 {[%emt 0:00:04]} 134. Rd6+ {[%emt 0:00:03]} 1/2-1/2

[Event "CCT Julius Baer-D2-Place 2024"]
[Site "Online"]
[Date "2024.09.26"]
[Round "1"]
[White "Micki-taryan"]
[Black "Robson, Ray"]
[Result "0-1"]
[ECO "E16"]
[WhiteElo "2649"]
[BlackElo "2700"]
[Annotator "TA"]
[PlyCount "100"]
[EventDate "2024.09.25"]
[EventType "swiss"]
[EventCountry "NET"]
[SourceTitle "playchess.com"]
[Source "ChessBase"]
[SourceQuality "1"]
[TimeControl "600+2"]

{[%evp 39,100,79,102,0,99,98,85,0,44,0,0,0,14,0,0,-19,0,0,30,-345,-191,-194,-198,-193,-176,-666,-653,-1067,-1057,-1002,-695,-737,-736,-713,-679,-693,-678,-758,-749,-762,-729,-1010,-1011,-1136,-1138,-1187,-1210,-1876,-1342,-1606,-1915,-1947,-1761,-1840,-1583,-5800,-5201,-29989,-29990,-29991,-29986,-29983,-29984]} 1. d4 {[%emt 0:00:02]} Nf6 {[%emt 0:00:06]} 2. c4 {[%emt 0:00:01]} e6 {[%emt 0:00:01]} 3. Nf3 {[%emt 0:00:00]} Bb4+ {[%emt 0:00:07]} 4. Bd2 {[%emt 0:00:01]} c5 {[%emt 0:00:03]} 5. Bxb4 {[%emt 0:00:01]} cxb4 {[%emt 0:00:00]} 6. g3 {[%emt 0:00:00]} b6 $1 {[%emt 0:00:01][%mdl 4] is more profitable than 6...0-0 at the moment.} 7. Bg2 {[%emt 0:00:01]} Bb7 {[%emt 0:00:00]} 8. O-O {[%emt 0:00:00]} a5 {[%emt 0:00:02] E16: Queen's Indian: 4 g3 Bb7 5 Bg2 Bb4+.} 9. Qd3 {[%emt 0:00:00]} O-O {[%emt 0:00:07]} 10. Nbd2 {[%emt 0:00:01]} d5 $5 {[%emt 0:00:04][%mdl 4] Leaves trodden paths.} 11. Rac1 {[%emt 0:00:01]} dxc4 $146 {[%emt 0:00:27]} ({Predecessor:} 11... Nbd7 12. cxd5 exd5 13. Ne5 Rc8 14. Qf5 Re8 15. Ndf3 Nxe5 16. Nxe5 Re7 17. Qf4 Ne4 {1-0 Sargsyan,S (2399)-Paramzina,A (2220) Moscow Aeroflot op-B 16th 2017 (3)}) 12. Nxc4 {[%emt 0:00:08]} Be4 {[%emt 0:00:38]} 13. Qe3 {[%emt 0:00:21]} Nc6 {[%emt 0:00:21]} 14. Rfd1 {[%emt 0:00:13]} Rc8 {[%emt 0:00:53]} 15. d5 {[%emt 0:00:54]} exd5 {[%emt 0:00:16]} 16. Qxb6 {[%emt 0:00:10]} Qe7 {[%emt 0:00:48]} 17. Ne3 {[%emt 0:01:08]} Qd7 {[%emt 0:02:37]} 18. Qb5 {[%emt 0:02:24]} h6 {[%emt 0:00:22]} 19. Rc5 {[%emt 0:00:12]} Rfd8 {[%emt 0:00:48]} 20. Rdc1 {[%emt 0:00:45]} d4 {[%emt 0:00:18]} 21. Nc4 {[%emt 0:00:05]} (21. Ne5 $16 Qe6 22. Bxe4 (22. Nxc6 Bxc6 23. Rxc6 dxe3 $11) (22. Rxc6 dxe3 23. Rxc8 exf2+ 24. Kxf2 Rxc8 $11) 22... Nxe5 23. Bf5 Rxc5 24. Rxc5 Qxa2 25. Nf1) 21... Qe6 {[%emt 0:00:50]} (21... Rb8 $1 $11 22. Qa6 (22. Nb6 Qa7 $11) 22... Ra8) 22. Ncd2 $16 {[%emt 0:01:03]} (22. Nxa5 Rb8 23. Qc4 Qxc4 24. Nxc4 Nd7) 22... Bd5 {[%emt 0:00:30]} 23. b3 {[%emt 0:00:18]} ({White should try} 23. Ne1 $16) 23... Re8 {[%emt 0:00:43]} 24. Qa6 {[%emt 0:00:50]} Ra8 {[%emt 0:00:30]} (24... Qxe2 25. Qxe2 Rxe2 26. Bf1 $16) 25. Qd3 {[%emt 0:00:09]} Rad8 {[%emt 0:00:04]} (25... Qxe2 26. Qxe2 Rxe2 27. Rxc6 Bxc6 28. Rxc6 $14) 26. Qb5 {[%emt 0:00:22]} (26. Nxd4 $2 Nxd4 27. e4 Bc6 $19 (27... Bxe4 $2 28. Nxe4 Nxe4 29. Bxe4 $19)) 26... Rb8 {[%emt 0:00:06]} (26... Qxe2 $2 {too greedy.} 27. Bf1 Qe7 (27... Qxb5 $2 28. Bxb5 Ne5 29. Bxe8 $18) 28. Rxc6 $18) 27. Qa4 {[%emt 0:00:14]} Rbc8 {[%emt 0:00:06]} 28. Bf1 {[%emt 0:00:45]} g5 {[%emt 0:00:02]} 29. Nc4 $2 {[%emt 0:00:10][%mdl 8192]} (29. Qb5 $11 {and White has nothing to worry.}) 29... Nd7 {[%emt 0:00:05]} ({Resist} 29... Ne4 30. Rxd5 Qxd5 31. Nb6) (29... d3 $142 30. Ne3 Bxf3 31. exf3 d2) 30. Rxd5 $19 {[%emt 0:00:29]} Qxd5 {[%emt 0:00:02]} 31. Nfd2 {[%emt 0:00:02]} Qe6 {[%emt 0:00:04]} 32. Qb5 $2 {[%emt 0:00:02]} (32. a3) 32... Rb8 $19 {[%emt 0:00:02]} 33. Qa6 {[%emt 0:00:14]} Nc5 {[%emt 0:00:01]} 34. Bh3 {[%emt 0:00:00]} Nxa6 {[%emt 0:00:02]} 35. Bxe6 {[%emt 0:00:01]} Rxe6 {[%emt 0:00:00]} 36. Kf1 {[%emt 0:00:01]} Nc5 {[%emt 0:00:03]} 37. Nb2 {[%emt 0:00:01]} Nd7 {[%emt 0:00:02]} 38. Nd3 {[%emt 0:00:00]} Nce5 {[%emt 0:00:02]} 39. Nb2 {[%emt 0:00:01]} Rc6 {[%emt 0:00:01]} 40. Rb1 {[%emt 0:00:01]} Rbc8 {[%emt 0:00:01]} 41. Ndc4 {[%emt 0:00:01]} Nxc4 {[%emt 0:00:01]} 42. Nxc4 {[%emt 0:00:01]} Nb6 {[%emt 0:00:02]} 43. Nxa5 {[%emt 0:00:00]} Rc1+ {[%emt 0:00:01]} 44. Rxc1 {[%emt 0:00:01]} Rxc1+ {[%emt 0:00:00]} 45. Kg2 {[%emt 0:00:00]} Rc2 {[%emt 0:00:01]} 46. Kf3 {[%emt 0:00:00]} f5 {[%emt 0:00:03]} 47. g4 {[%emt 0:00:01]} fxg4+ {[%emt 0:00:01]} 48. Kxg4 {[%emt 0:00:00]} Rxe2 {[%emt 0:00:01]} 49. Kf3 {[%emt 0:00:00]} Re6 {[%emt 0:00:05]} 50. Nc6 {[%emt 0:00:00]} Rxc6 {[%emt 0:00:01]} 0-1

[Event "CCT Julius Baer-D2-Place 2024"]
[Site "Online"]
[Date "2024.09.26"]
[Round "1"]
[White "Sargsyan, Shant"]
[Black "Gelfand, Boris"]
[Result "1-0"]
[ECO "D02"]
[WhiteElo "2649"]
[BlackElo "2658"]
[Annotator "TA"]
[PlyCount "179"]
[EventDate "2024.09.25"]
[EventType "swiss"]
[EventCountry "NET"]
[SourceTitle "playchess.com"]
[Source "ChessBase"]
[SourceQuality "1"]
[TimeControl "600+2"]

{[%evp 9,179,-13,16,-4,7,-3,0,-26,-25,-35,-33,-30,-8,-4,-7,-9,-16,-20,1,0,7,-11,17,-33,-32,-37,-22,-27,-20,-31,-20,-23,-22,-27,-41,-37,-23,-49,-17,-12,0,0,0,-20,0,-11,-14,-12,-14,-12,-8,-14,-6,-26,0,-1,0,-12,0,0,0,0,0,0,0,0,0,-10,-2,-52,-59,-60,-24,-24,-27,-35,0,0,0,0,-2,0,-1,-1,0,-4,0,0,0,0,0,0,0,3,0,0,0,4,27,8,63,42,64,8,8,0,63,63,203,52,52,52,52,52,87,52,52,52,54,54,54,54,55,55,55,55,69,55,56,28,28,0,28,28,91,91,91,91,105,96,112,0,95,97,100,95,134,97,97,79,162,159,676,131,29960,29967,29976,29977,29977,0,90,0,29977,29978,29978,29979,29979,29980,29980,29979,29979,29980]} 1. d4 {[%emt 0:00:02]} Nf6 {[%emt 0:00:04]} 2. Nf3 {[%emt 0:00:01]} d5 {[%emt 0:00:02]} 3. Bf4 {[%emt 0:00:01]} c5 {[%emt 0:00:02]} 4. e3 {[%emt 0:00:00]} Nc6 {[%emt 0:00:01]} 5. Nbd2 {[%emt 0:00:00]} Nh5 {[%emt 0:00:02]} 6. Be5 {[%emt 0:00:03]} e6 {[%emt 0:00:01]} 7. Bb5 {[%emt 0:00:05]} f6 {[%emt 0:00:17]} 8. Bg3 {[%emt 0:00:04] The position is equal.} (8. dxc5 $5 fxe5 9. Nxe5 $15) 8... Bd7 {[%emt 0:00:01]} 9. c3 {[%emt 0:00:27]} cxd4 {[%emt 0:00:32]} 10. exd4 {[%emt 0:00:11]} Be7 {[%emt 0:00:49]} 11. O-O {[%emt 0:00:30]} Nxg3 {[%emt 0:00:08]} 12. hxg3 {[%emt 0:00:01]} O-O {[%emt 0:00:01]} 13. Re1 {[%emt 0:00:01]} Kh8 {[%emt 0:00:29]} 14. Rc1 {[%emt 0:00:14]} Qb6 {[%emt 0:00:26]} 15. c4 {[%emt 0:00:29]} Rad8 {[%emt 0:01:05]} 16. Qe2 {[%emt 0:01:28]} (16. cxd5 $11 Qxb5 17. dxc6 bxc6 18. Nb3) 16... dxc4 $15 {[%emt 0:00:37]} 17. Bxc6 {[%emt 0:00:08]} Qxc6 {[%emt 0:00:38]} 18. Nxc4 {[%emt 0:00:04][%cal Oc4e5]} Qa6 {[%emt 0:00:02]} 19. b3 {[%emt 0:00:40]} Bb4 {[%emt 0:00:28]} 20. Red1 {[%emt 0:00:06]} Rfe8 {[%emt 0:00:02]} 21. a3 {[%emt 0:00:24]} Bf8 {[%emt 0:00:03][%cal Ob7b5]} (21... Bxa3 $2 {too greedy.} 22. Ra1 $18) 22. a4 {[%emt 0:00:00]} Bc6 {[%emt 0:00:07]} 23. Qc2 {[%emt 0:00:35]} Bd5 {[%emt 0:00:42]} 24. Ne3 {[%emt 0:00:10]} Qa5 {[%emt 0:00:20]} 25. Nxd5 {[%emt 0:00:05]} Qxd5 {[%emt 0:00:02]} 26. Re1 {[%emt 0:00:12]} Rd7 {[%emt 0:00:16]} 27. Qd3 {[%emt 0:00:23]} Kg8 {[%emt 0:00:07]} 28. Rc4 {[%emt 0:00:04]} a6 {[%emt 0:00:35]} 29. g4 {[%emt 0:00:06]} b5 {[%emt 0:00:07]} 30. axb5 {[%emt 0:00:00]} axb5 {[%emt 0:00:08]} 31. Rc2 {[%emt 0:00:01]} Bb4 {[%emt 0:00:33]} 32. Re3 {[%emt 0:00:19][%cal Og4g5]} Ra7 {[%emt 0:00:02]} 33. Rc1 {[%emt 0:00:39]} Bd6 {[%emt 0:00:05]} 34. g3 {[%emt 0:00:11]} Rea8 {[%emt 0:00:18]} 35. Kg2 {[%emt 0:00:16]} Ra1 {[%emt 0:00:05]} 36. Rxa1 {[%emt 0:00:01]} (36. Rc2 {feels hotter.} f5 37. gxf5 exf5 38. b4) 36... Rxa1 {[%emt 0:00:01]} 37. Qc2 {[%emt 0:00:03]} Ra8 {[%emt 0:00:03]} 38. Qe2 {[%emt 0:00:20]} Kf7 {[%emt 0:00:05]} 39. Qc2 {[%emt 0:00:02]} (39. g5 $1 $11) 39... h6 {[%emt 0:00:06]} 40. Kh2 {[%emt 0:00:27]} Re8 {[%emt 0:00:09]} 41. Qd3 {[%emt 0:00:40]} (41. Nh4 {feels hotter.} Rd8 42. Qd3 Rc8 43. Re2) 41... Kg8 {[%emt 0:00:14]} 42. Qg6 {[%emt 0:00:05]} Re7 {[%emt 0:00:08]} 43. Rc3 {[%emt 0:00:14]} Qa8 {[%emt 0:00:09] Prevents Rc8+.} 44. Qd3 {[%emt 0:00:10]} Rc7 {[%emt 0:00:11]} 45. Rxc7 {[%emt 0:00:18]} Bxc7 $11 {[%emt 0:00:01][%mdl 4096] Endgame. KQB-KQN} 46. Nh4 {[%emt 0:00:20]} Qc6 {[%emt 0:00:04]} 47. Ng2 {[%emt 0:00:03]} Bd6 {[%emt 0:00:08]} 48. Ne3 {[%emt 0:00:18]} Kf7 {[%emt 0:00:11]} 49. d5 {[%emt 0:00:02]} exd5 {[%emt 0:00:02]} 50. Nxd5 {[%emt 0:00:00]} Bc5 {[%emt 0:00:03]} 51. Kg1 {[%emt 0:00:08]} Qe6 {[%emt 0:00:05]} 52. Qf3 {[%emt 0:00:03]} Qe5 {[%emt 0:00:06]} 53. Nf4 {[%emt 0:00:03]} Be7 {[%emt 0:00:07]} (53... g5 {seems wilder.} 54. Nd3 Qd4 55. Qf5 Be7) 54. Kg2 {[%emt 0:00:01]} g5 {[%emt 0:00:02]} (54... g6 $11) 55. Nd5 $1 $14 {[%emt 0:00:05]} Qe6 {[%emt 0:00:04]} 56. Nc7 {[%emt 0:00:05]} ({White should play} 56. Qd3 $14) 56... Qd7 $1 $11 {[%emt 0:00:02]} 57. Nd5 {[%emt 0:00:03]} (57. Qd5+ $11 Qxd5+ 58. Nxd5) 57... Qe6 $14 {[%emt 0:00:03]} 58. Qd3 {[%emt 0:00:02]} Kg7 {[%emt 0:00:13] Repels Qh7+} (58... Qc6 $14) 59. Ne3 $2 {[%emt 0:00:02]} (59. Qxb5 $18 {aiming for Qb7.} Bf8 60. Qb7+ Qf7 61. Qc6) 59... Qc6+ {[%emt 0:00:06]} 60. Kh2 {[%emt 0:00:04]} Bf8 {[%emt 0:00:01]} 61. Nf5+ {[%emt 0:00:01]} Kf7 {[%emt 0:00:01]} 62. Qe3 {[%emt 0:00:04] White is more active.} Qb7 {[%emt 0:00:03]} 63. Qc3 {[%emt 0:00:05]} Qd7 {[%emt 0:00:02][%cal Oh6h5]} 64. Qf3 {[%emt 0:00:02]} Kg6 {[%emt 0:00:03]} 65. Qe4 {[%emt 0:00:02]} Kf7 {[%emt 0:00:02]} 66. Ne3 {[%emt 0:00:01]} Kg7 {[%emt 0:00:02] Inhibits Qh7+.} 67. Kg2 {[%emt 0:00:00]} Qf7 {[%emt 0:00:09]} 68. Nf5+ {[%emt 0:00:03]} Kg8 {[%emt 0:00:01]} 69. Qa8 {[%emt 0:00:11]} Qxb3 {[%emt 0:00:02]} 70. Nxh6+ {[%emt 0:00:01]} Kg7 {[%emt 0:00:01]} 71. Nf5+ {[%emt 0:00:00]} Kg8 {[%emt 0:00:01]} (71... Kf7 $11 {keeps the balance.}) 72. Qc6 $16 {[%emt 0:00:07]} Qc4 {[%emt 0:00:02]} 73. Qxf6 {[%emt 0:00:03]} Qxg4 {[%emt 0:00:03]} 74. Qg6+ {[%emt 0:00:01]} Kh8 {[%emt 0:00:01]} 75. Qf6+ {[%emt 0:00:00]} Kg8 {[%emt 0:00:01] [#]} 76. Qe6+ $1 {[%emt 0:00:01]} Kh8 {[%emt 0:00:01]} 77. Qe5+ {[%emt 0:00:00]} Kg8 {[%emt 0:00:01]} 78. Qxb5 {[%emt 0:00:04]} Qe4+ {[%emt 0:00:01]} 79. Kh2 {[%emt 0:00:03]} Qf3 {[%emt 0:00:01] [#] Inhibits Qb3+.} (79... Kf7 $16 {was called for.}) 80. Kg1 $1 $18 {[%emt 0:00:04]} Qe4 $2 {[%emt 0:00:03] Wards off Qc4+} (80... Qh5 $16 81. Qe5 Qf7) 81. Ne3 $2 {[%emt 0:00:02]} (81. Qb3+ $18 {is the precise move to win.} Kh8 82. Qf7) 81... Be7 $2 {[%emt 0:00:02][%mdl 8192]} (81... Qg6 $16 82. Qe5 Bd6 83. Qd5+ Kh7) 82. Qe8+ {[%emt 0:00:04]} Kh7 {[%emt 0:00:03]} 83. Qf7+ {[%emt 0:00:02]} Kh8 {[%emt 0:00:03]} 84. Qe8+ $2 {[%emt 0:00:01]} (84. Nf5 {mates} Qb1+ 85. Kh2 Qb2 86. Nxe7 (86. Qxe7 Qxf2+ 87. Kh1 Qf1+ 88. Kh2 Qxf5 $11) 86... Qg7 87. Qxg7+ (87. Qe8+ Kh7 $18) 87... Kxg7 88. Kh3 Kf7 89. Kg4) 84... Kh7 $1 $16 {[%emt 0:00:02]} 85. Qf7+ $2 {[%emt 0:00:01][%mdl 8192]} (85. g4 $16) 85... Kh8 {[%emt 0:00:01]} 86. Nf5 {[%emt 0:00:00][%csl Gf5][%cal Rf7g7] White mates.} Qe1+ {[%emt 0:00:02]} 87. Kg2 {[%emt 0:00:01][%csl Gf5][%cal Rf7g7]} Qe4+ {[%emt 0:00:02]} 88. Kh2 {[%emt 0:00:01][%csl Gf5][%cal Rf7g7]} Qe5 {[%emt 0:00:09]} 89. Qe8+ {[%emt 0:00:05]} Kh7 {[%emt 0:00:02]} 90. Qxe7+ {[%emt 0:00:00] Weighted Error Value: White=0.12 (very precise) /Black=0.12 (very precise) .  Loses game:     	---       	Black=2      Missed win:     	White=1     	---        Mistake:       	White=5     	Black=4      Inaccurate:     	White=5     	Black=7      OK:         	White=31    	Black=18     Best:        	White=3     	Black=8      Strong:       	White=2     	Black=1} 1-0